{"text_format":"3","workbook":"xlsx","n_sheets":3,"sheets":["Raspored","Unos podataka","Pretraživanje imena"],"not_rendered":{"defined_names":5},"read":"whole","date_system":"1900"}

{"sheet":"Raspored","index":0,"n_rows":23,"n_cols":9,"rows_kept":23,"merged":[[1,1,2,3]]}
[]
[null,"DNEVNI RASPORED",{"$nulls":4},"Za tjedan od","Pokaži raspored za:"]
[{"$nulls":5},{"$f":"WEEKDAY(TjedanOd,1)","v":3},"2012-07-03","Luka"]
[null,null,{"$f":"$F$3=COLUMN(A$1)","v":false},{"$f":"$F$3=COLUMN(B$1)","v":false},true,false,false,false,false]
[null,null,{"$f":"COLUMN(A$1)-MATCH(TRUE,$C$4:$I$4,0)+TjedanOd+1","v":"2012-07-02"},"2012-07-03","2012-07-04","2012-07-05","2012-07-06","2012-07-07","2012-07-08"]
[null,"VRIJEME","PONEDJELJAK","UTORAK","SRIJEDA","ČETVRTAK","PETAK","SUBOTA","NEDJELJA"]
[null,"06:00:00",{"$f":"IFERROR(INDEX(tblPodaci[],MATCH(C$5+$B7&PokažiNaziv,tblPodaci[DATUM I VRIJEME]&tblPodaci[TKO],0),3),\"\")","v":""},{"$f":"IFERROR(INDEX(tblPodaci[],MATCH(D$5+$B7&PokažiNaziv,tblPodaci[DATUM I VRIJEME]&tblPodaci[TKO],0),3),\"\")","v":""},{"$f":"IFERROR(INDEX(tblPodaci[],MATCH(E$5+$B7&PokažiNaziv,tblPodaci[DATUM I VRIJEME]&tblPodaci[TKO],0),3),\"\")","v":""},{"$f":"IFERROR(INDEX(tblPodaci[],MATCH(F$5+$B7&PokažiNaziv,tblPodaci[DATUM I VRIJEME]&tblPodaci[TKO],0),3),\"\")","v":""},{"$f":"IFERROR(INDEX(tblPodaci[],MATCH(G$5+$B7&PokažiNaziv,tblPodaci[DATUM I VRIJEME]&tblPodaci[TKO],0),3),\"\")","v":""},{"$f":"IFERROR(INDEX(tblPodaci[],MATCH(H$5+$B7&PokažiNaziv,tblPodaci[DATUM I VRIJEME]&tblPodaci[TKO],0),3),\"\")","v":""},{"$f":"IFERROR(INDEX(tblPodaci[],MATCH(I$5+$B7&PokažiNaziv,tblPodaci[DATUM I VRIJEME]&tblPodaci[TKO],0),3),\"\")","v":""}]
[null,"07:00:00",{"$f":"IFERROR(INDEX(tblPodaci[],MATCH(C$5+$B8&PokažiNaziv,tblPodaci[DATUM I VRIJEME]&tblPodaci[TKO],0),3),\"\")","v":""},{"$f":"IFERROR(INDEX(tblPodaci[],MATCH(D$5+$B8&PokažiNaziv,tblPodaci[DATUM I VRIJEME]&tblPodaci[TKO],0),3),\"\")","v":""},{"$f":"IFERROR(INDEX(tblPodaci[],MATCH(E$5+$B8&PokažiNaziv,tblPodaci[DATUM I VRIJEME]&tblPodaci[TKO],0),3),\"\")","v":""},{"$f":"IFERROR(INDEX(tblPodaci[],MATCH(F$5+$B8&PokažiNaziv,tblPodaci[DATUM I VRIJEME]&tblPodaci[TKO],0),3),\"\")","v":""},{"$f":"IFERROR(INDEX(tblPodaci[],MATCH(G$5+$B8&PokažiNaziv,tblPodaci[DATUM I VRIJEME]&tblPodaci[TKO],0),3),\"\")","v":""},{"$f":"IFERROR(INDEX(tblPodaci[],MATCH(H$5+$B8&PokažiNaziv,tblPodaci[DATUM I VRIJEME]&tblPodaci[TKO],0),3),\"\")","v":""},{"$f":"IFERROR(INDEX(tblPodaci[],MATCH(I$5+$B8&PokažiNaziv,tblPodaci[DATUM I VRIJEME]&tblPodaci[TKO],0),3),\"\")","v":""}]
[null,"08:00:00",{"$f":"IFERROR(INDEX(tblPodaci[],MATCH(C$5+$B9&PokažiNaziv,tblPodaci[DATUM I VRIJEME]&tblPodaci[TKO],0),3),\"\")","v":""},{"$f":"IFERROR(INDEX(tblPodaci[],MATCH(D$5+$B9&PokažiNaziv,tblPodaci[DATUM I VRIJEME]&tblPodaci[TKO],0),3),\"\")","v":""},{"$f":"IFERROR(INDEX(tblPodaci[],MATCH(E$5+$B9&PokažiNaziv,tblPodaci[DATUM I VRIJEME]&tblPodaci[TKO],0),3),\"\")","v":""},{"$f":"IFERROR(INDEX(tblPodaci[],MATCH(F$5+$B9&PokažiNaziv,tblPodaci[DATUM I VRIJEME]&tblPodaci[TKO],0),3),\"\")","v":""},{"$f":"IFERROR(INDEX(tblPodaci[],MATCH(G$5+$B9&PokažiNaziv,tblPodaci[DATUM I VRIJEME]&tblPodaci[TKO],0),3),\"\")","v":""},{"$f":"IFERROR(INDEX(tblPodaci[],MATCH(H$5+$B9&PokažiNaziv,tblPodaci[DATUM I VRIJEME]&tblPodaci[TKO],0),3),\"\")","v":""},{"$f":"IFERROR(INDEX(tblPodaci[],MATCH(I$5+$B9&PokažiNaziv,tblPodaci[DATUM I VRIJEME]&tblPodaci[TKO],0),3),\"\")","v":""}]
[null,"09:00:00",{"$f":"IFERROR(INDEX(tblPodaci[],MATCH(C$5+$B10&PokažiNaziv,tblPodaci[DATUM I VRIJEME]&tblPodaci[TKO],0),3),\"\")","v":""},{"$f":"IFERROR(INDEX(tblPodaci[],MATCH(D$5+$B10&PokažiNaziv,tblPodaci[DATUM I VRIJEME]&tblPodaci[TKO],0),3),\"\")","v":""},{"$f":"IFERROR(INDEX(tblPodaci[],MATCH(E$5+$B10&PokažiNaziv,tblPodaci[DATUM I VRIJEME]&tblPodaci[TKO],0),3),\"\")","v":""},{"$f":"IFERROR(INDEX(tblPodaci[],MATCH(F$5+$B10&PokažiNaziv,tblPodaci[DATUM I VRIJEME]&tblPodaci[TKO],0),3),\"\")","v":""},{"$f":"IFERROR(INDEX(tblPodaci[],MATCH(G$5+$B10&PokažiNaziv,tblPodaci[DATUM I VRIJEME]&tblPodaci[TKO],0),3),\"\")","v":""},{"$f":"IFERROR(INDEX(tblPodaci[],MATCH(H$5+$B10&PokažiNaziv,tblPodaci[DATUM I VRIJEME]&tblPodaci[TKO],0),3),\"\")","v":""},{"$f":"IFERROR(INDEX(tblPodaci[],MATCH(I$5+$B10&PokažiNaziv,tblPodaci[DATUM I VRIJEME]&tblPodaci[TKO],0),3),\"\")","v":""}]
[null,"10:00:00",{"$f":"IFERROR(INDEX(tblPodaci[],MATCH(C$5+$B11&PokažiNaziv,tblPodaci[DATUM I VRIJEME]&tblPodaci[TKO],0),3),\"\")","v":""},{"$f":"IFERROR(INDEX(tblPodaci[],MATCH(D$5+$B11&PokažiNaziv,tblPodaci[DATUM I VRIJEME]&tblPodaci[TKO],0),3),\"\")","v":""},{"$f":"IFERROR(INDEX(tblPodaci[],MATCH(E$5+$B11&PokažiNaziv,tblPodaci[DATUM I VRIJEME]&tblPodaci[TKO],0),3),\"\")","v":"Parada u gradu"},{"$f":"IFERROR(INDEX(tblPodaci[],MATCH(F$5+$B11&PokažiNaziv,tblPodaci[DATUM I VRIJEME]&tblPodaci[TKO],0),3),\"\")","v":""},{"$f":"IFERROR(INDEX(tblPodaci[],MATCH(G$5+$B11&PokažiNaziv,tblPodaci[DATUM I VRIJEME]&tblPodaci[TKO],0),3),\"\")","v":""},{"$f":"IFERROR(INDEX(tblPodaci[],MATCH(H$5+$B11&PokažiNaziv,tblPodaci[DATUM I VRIJEME]&tblPodaci[TKO],0),3),\"\")","v":""},{"$f":"IFERROR(INDEX(tblPodaci[],MATCH(I$5+$B11&PokažiNaziv,tblPodaci[DATUM I VRIJEME]&tblPodaci[TKO],0),3),\"\")","v":""}]
[null,"11:00:00",{"$f":"IFERROR(INDEX(tblPodaci[],MATCH(C$5+$B12&PokažiNaziv,tblPodaci[DATUM I VRIJEME]&tblPodaci[TKO],0),3),\"\")","v":""},{"$f":"IFERROR(INDEX(tblPodaci[],MATCH(D$5+$B12&PokažiNaziv,tblPodaci[DATUM I VRIJEME]&tblPodaci[TKO],0),3),\"\")","v":""},{"$f":"IFERROR(INDEX(tblPodaci[],MATCH(E$5+$B12&PokažiNaziv,tblPodaci[DATUM I VRIJEME]&tblPodaci[TKO],0),3),\"\")","v":""},{"$f":"IFERROR(INDEX(tblPodaci[],MATCH(F$5+$B12&PokažiNaziv,tblPodaci[DATUM I VRIJEME]&tblPodaci[TKO],0),3),\"\")","v":""},{"$f":"IFERROR(INDEX(tblPodaci[],MATCH(G$5+$B12&PokažiNaziv,tblPodaci[DATUM I VRIJEME]&tblPodaci[TKO],0),3),\"\")","v":"Obiteljski roštilj"},{"$f":"IFERROR(INDEX(tblPodaci[],MATCH(H$5+$B12&PokažiNaziv,tblPodaci[DATUM I VRIJEME]&tblPodaci[TKO],0),3),\"\")","v":""},{"$f":"IFERROR(INDEX(tblPodaci[],MATCH(I$5+$B12&PokažiNaziv,tblPodaci[DATUM I VRIJEME]&tblPodaci[TKO],0),3),\"\")","v":""}]
[null,"12:00:00",{"$f":"IFERROR(INDEX(tblPodaci[],MATCH(C$5+$B13&PokažiNaziv,tblPodaci[DATUM I VRIJEME]&tblPodaci[TKO],0),3),\"\")","v":""},{"$f":"IFERROR(INDEX(tblPodaci[],MATCH(D$5+$B13&PokažiNaziv,tblPodaci[DATUM I VRIJEME]&tblPodaci[TKO],0),3),\"\")","v":""},{"$f":"IFERROR(INDEX(tblPodaci[],MATCH(E$5+$B13&PokažiNaziv,tblPodaci[DATUM I VRIJEME]&tblPodaci[TKO],0),3),\"\")","v":""},{"$f":"IFERROR(INDEX(tblPodaci[],MATCH(F$5+$B13&PokažiNaziv,tblPodaci[DATUM I VRIJEME]&tblPodaci[TKO],0),3),\"\")","v":""},{"$f":"IFERROR(INDEX(tblPodaci[],MATCH(G$5+$B13&PokažiNaziv,tblPodaci[DATUM I VRIJEME]&tblPodaci[TKO],0),3),\"\")","v":""},{"$f":"IFERROR(INDEX(tblPodaci[],MATCH(H$5+$B13&PokažiNaziv,tblPodaci[DATUM I VRIJEME]&tblPodaci[TKO],0),3),\"\")","v":""},{"$f":"IFERROR(INDEX(tblPodaci[],MATCH(I$5+$B13&PokažiNaziv,tblPodaci[DATUM I VRIJEME]&tblPodaci[TKO],0),3),\"\")","v":""}]
[null,"13:00:00",{"$f":"IFERROR(INDEX(tblPodaci[],MATCH(C$5+$B14&PokažiNaziv,tblPodaci[DATUM I VRIJEME]&tblPodaci[TKO],0),3),\"\")","v":""},{"$f":"IFERROR(INDEX(tblPodaci[],MATCH(D$5+$B14&PokažiNaziv,tblPodaci[DATUM I VRIJEME]&tblPodaci[TKO],0),3),\"\")","v":""},{"$f":"IFERROR(INDEX(tblPodaci[],MATCH(E$5+$B14&PokažiNaziv,tblPodaci[DATUM I VRIJEME]&tblPodaci[TKO],0),3),\"\")","v":""},{"$f":"IFERROR(INDEX(tblPodaci[],MATCH(F$5+$B14&PokažiNaziv,tblPodaci[DATUM I VRIJEME]&tblPodaci[TKO],0),3),\"\")","v":""},{"$f":"IFERROR(INDEX(tblPodaci[],MATCH(G$5+$B14&PokažiNaziv,tblPodaci[DATUM I VRIJEME]&tblPodaci[TKO],0),3),\"\")","v":""},{"$f":"IFERROR(INDEX(tblPodaci[],MATCH(H$5+$B14&PokažiNaziv,tblPodaci[DATUM I VRIJEME]&tblPodaci[TKO],0),3),\"\")","v":""},{"$f":"IFERROR(INDEX(tblPodaci[],MATCH(I$5+$B14&PokažiNaziv,tblPodaci[DATUM I VRIJEME]&tblPodaci[TKO],0),3),\"\")","v":""}]
[null,"14:00:00",{"$f":"IFERROR(INDEX(tblPodaci[],MATCH(C$5+$B15&PokažiNaziv,tblPodaci[DATUM I VRIJEME]&tblPodaci[TKO],0),3),\"\")","v":""},{"$f":"IFERROR(INDEX(tblPodaci[],MATCH(D$5+$B15&PokažiNaziv,tblPodaci[DATUM I VRIJEME]&tblPodaci[TKO],0),3),\"\")","v":""},{"$f":"IFERROR(INDEX(tblPodaci[],MATCH(E$5+$B15&PokažiNaziv,tblPodaci[DATUM I VRIJEME]&tblPodaci[TKO],0),3),\"\")","v":""},{"$f":"IFERROR(INDEX(tblPodaci[],MATCH(F$5+$B15&PokažiNaziv,tblPodaci[DATUM I VRIJEME]&tblPodaci[TKO],0),3),\"\")","v":""},{"$f":"IFERROR(INDEX(tblPodaci[],MATCH(G$5+$B15&PokažiNaziv,tblPodaci[DATUM I VRIJEME]&tblPodaci[TKO],0),3),\"\")","v":""},{"$f":"IFERROR(INDEX(tblPodaci[],MATCH(H$5+$B15&PokažiNaziv,tblPodaci[DATUM I VRIJEME]&tblPodaci[TKO],0),3),\"\")","v":""},{"$f":"IFERROR(INDEX(tblPodaci[],MATCH(I$5+$B15&PokažiNaziv,tblPodaci[DATUM I VRIJEME]&tblPodaci[TKO],0),3),\"\")","v":""}]
[null,"15:00:00",{"$f":"IFERROR(INDEX(tblPodaci[],MATCH(C$5+$B16&PokažiNaziv,tblPodaci[DATUM I VRIJEME]&tblPodaci[TKO],0),3),\"\")","v":""},{"$f":"IFERROR(INDEX(tblPodaci[],MATCH(D$5+$B16&PokažiNaziv,tblPodaci[DATUM I VRIJEME]&tblPodaci[TKO],0),3),\"\")","v":""},{"$f":"IFERROR(INDEX(tblPodaci[],MATCH(E$5+$B16&PokažiNaziv,tblPodaci[DATUM I VRIJEME]&tblPodaci[TKO],0),3),\"\")","v":""},{"$f":"IFERROR(INDEX(tblPodaci[],MATCH(F$5+$B16&PokažiNaziv,tblPodaci[DATUM I VRIJEME]&tblPodaci[TKO],0),3),\"\")","v":""},{"$f":"IFERROR(INDEX(tblPodaci[],MATCH(G$5+$B16&PokažiNaziv,tblPodaci[DATUM I VRIJEME]&tblPodaci[TKO],0),3),\"\")","v":""},{"$f":"IFERROR(INDEX(tblPodaci[],MATCH(H$5+$B16&PokažiNaziv,tblPodaci[DATUM I VRIJEME]&tblPodaci[TKO],0),3),\"\")","v":""},{"$f":"IFERROR(INDEX(tblPodaci[],MATCH(I$5+$B16&PokažiNaziv,tblPodaci[DATUM I VRIJEME]&tblPodaci[TKO],0),3),\"\")","v":""}]
[null,"16:00:00",{"$f":"IFERROR(INDEX(tblPodaci[],MATCH(C$5+$B17&PokažiNaziv,tblPodaci[DATUM I VRIJEME]&tblPodaci[TKO],0),3),\"\")","v":""},{"$f":"IFERROR(INDEX(tblPodaci[],MATCH(D$5+$B17&PokažiNaziv,tblPodaci[DATUM I VRIJEME]&tblPodaci[TKO],0),3),\"\")","v":"Odlazak u vikendicu"},{"$f":"IFERROR(INDEX(tblPodaci[],MATCH(E$5+$B17&PokažiNaziv,tblPodaci[DATUM I VRIJEME]&tblPodaci[TKO],0),3),\"\")","v":""},{"$f":"IFERROR(INDEX(tblPodaci[],MATCH(F$5+$B17&PokažiNaziv,tblPodaci[DATUM I VRIJEME]&tblPodaci[TKO],0),3),\"\")","v":""},{"$f":"IFERROR(INDEX(tblPodaci[],MATCH(G$5+$B17&PokažiNaziv,tblPodaci[DATUM I VRIJEME]&tblPodaci[TKO],0),3),\"\")","v":""},{"$f":"IFERROR(INDEX(tblPodaci[],MATCH(H$5+$B17&PokažiNaziv,tblPodaci[DATUM I VRIJEME]&tblPodaci[TKO],0),3),\"\")","v":""},{"$f":"IFERROR(INDEX(tblPodaci[],MATCH(I$5+$B17&PokažiNaziv,tblPodaci[DATUM I VRIJEME]&tblPodaci[TKO],0),3),\"\")","v":""}]
[null,"17:00:00",{"$f":"IFERROR(INDEX(tblPodaci[],MATCH(C$5+$B18&PokažiNaziv,tblPodaci[DATUM I VRIJEME]&tblPodaci[TKO],0),3),\"\")","v":""},{"$f":"IFERROR(INDEX(tblPodaci[],MATCH(D$5+$B18&PokažiNaziv,tblPodaci[DATUM I VRIJEME]&tblPodaci[TKO],0),3),\"\")","v":""},{"$f":"IFERROR(INDEX(tblPodaci[],MATCH(E$5+$B18&PokažiNaziv,tblPodaci[DATUM I VRIJEME]&tblPodaci[TKO],0),3),\"\")","v":""},{"$f":"IFERROR(INDEX(tblPodaci[],MATCH(F$5+$B18&PokažiNaziv,tblPodaci[DATUM I VRIJEME]&tblPodaci[TKO],0),3),\"\")","v":""},{"$f":"IFERROR(INDEX(tblPodaci[],MATCH(G$5+$B18&PokažiNaziv,tblPodaci[DATUM I VRIJEME]&tblPodaci[TKO],0),3),\"\")","v":""},{"$f":"IFERROR(INDEX(tblPodaci[],MATCH(H$5+$B18&PokažiNaziv,tblPodaci[DATUM I VRIJEME]&tblPodaci[TKO],0),3),\"\")","v":""},{"$f":"IFERROR(INDEX(tblPodaci[],MATCH(I$5+$B18&PokažiNaziv,tblPodaci[DATUM I VRIJEME]&tblPodaci[TKO],0),3),\"\")","v":"Povratak kući"}]
[null,"18:00:00",{"$f":"IFERROR(INDEX(tblPodaci[],MATCH(C$5+$B19&PokažiNaziv,tblPodaci[DATUM I VRIJEME]&tblPodaci[TKO],0),3),\"\")","v":"Uzimanje lijeka"},{"$f":"IFERROR(INDEX(tblPodaci[],MATCH(D$5+$B19&PokažiNaziv,tblPodaci[DATUM I VRIJEME]&tblPodaci[TKO],0),3),\"\")","v":""},{"$f":"IFERROR(INDEX(tblPodaci[],MATCH(E$5+$B19&PokažiNaziv,tblPodaci[DATUM I VRIJEME]&tblPodaci[TKO],0),3),\"\")","v":""},{"$f":"IFERROR(INDEX(tblPodaci[],MATCH(F$5+$B19&PokažiNaziv,tblPodaci[DATUM I VRIJEME]&tblPodaci[TKO],0),3),\"\")","v":""},{"$f":"IFERROR(INDEX(tblPodaci[],MATCH(G$5+$B19&PokažiNaziv,tblPodaci[DATUM I VRIJEME]&tblPodaci[TKO],0),3),\"\")","v":""},{"$f":"IFERROR(INDEX(tblPodaci[],MATCH(H$5+$B19&PokažiNaziv,tblPodaci[DATUM I VRIJEME]&tblPodaci[TKO],0),3),\"\")","v":""},{"$f":"IFERROR(INDEX(tblPodaci[],MATCH(I$5+$B19&PokažiNaziv,tblPodaci[DATUM I VRIJEME]&tblPodaci[TKO],0),3),\"\")","v":""}]
[null,"19:00:00",{"$f":"IFERROR(INDEX(tblPodaci[],MATCH(C$5+$B20&PokažiNaziv,tblPodaci[DATUM I VRIJEME]&tblPodaci[TKO],0),3),\"\")","v":""},{"$f":"IFERROR(INDEX(tblPodaci[],MATCH(D$5+$B20&PokažiNaziv,tblPodaci[DATUM I VRIJEME]&tblPodaci[TKO],0),3),\"\")","v":""},{"$f":"IFERROR(INDEX(tblPodaci[],MATCH(E$5+$B20&PokažiNaziv,tblPodaci[DATUM I VRIJEME]&tblPodaci[TKO],0),3),\"\")","v":""},{"$f":"IFERROR(INDEX(tblPodaci[],MATCH(F$5+$B20&PokažiNaziv,tblPodaci[DATUM I VRIJEME]&tblPodaci[TKO],0),3),\"\")","v":""},{"$f":"IFERROR(INDEX(tblPodaci[],MATCH(G$5+$B20&PokažiNaziv,tblPodaci[DATUM I VRIJEME]&tblPodaci[TKO],0),3),\"\")","v":""},{"$f":"IFERROR(INDEX(tblPodaci[],MATCH(H$5+$B20&PokažiNaziv,tblPodaci[DATUM I VRIJEME]&tblPodaci[TKO],0),3),\"\")","v":""},{"$f":"IFERROR(INDEX(tblPodaci[],MATCH(I$5+$B20&PokažiNaziv,tblPodaci[DATUM I VRIJEME]&tblPodaci[TKO],0),3),\"\")","v":""}]
[null,"20:00:00",{"$f":"IFERROR(INDEX(tblPodaci[],MATCH(C$5+$B21&PokažiNaziv,tblPodaci[DATUM I VRIJEME]&tblPodaci[TKO],0),3),\"\")","v":"Odlazak u kino s obitelji"},{"$f":"IFERROR(INDEX(tblPodaci[],MATCH(D$5+$B21&PokažiNaziv,tblPodaci[DATUM I VRIJEME]&tblPodaci[TKO],0),3),\"\")","v":""},{"$f":"IFERROR(INDEX(tblPodaci[],MATCH(E$5+$B21&PokažiNaziv,tblPodaci[DATUM I VRIJEME]&tblPodaci[TKO],0),3),\"\")","v":""},{"$f":"IFERROR(INDEX(tblPodaci[],MATCH(F$5+$B21&PokažiNaziv,tblPodaci[DATUM I VRIJEME]&tblPodaci[TKO],0),3),\"\")","v":"Vatromet"},{"$f":"IFERROR(INDEX(tblPodaci[],MATCH(G$5+$B21&PokažiNaziv,tblPodaci[DATUM I VRIJEME]&tblPodaci[TKO],0),3),\"\")","v":""},{"$f":"IFERROR(INDEX(tblPodaci[],MATCH(H$5+$B21&PokažiNaziv,tblPodaci[DATUM I VRIJEME]&tblPodaci[TKO],0),3),\"\")","v":""},{"$f":"IFERROR(INDEX(tblPodaci[],MATCH(I$5+$B21&PokažiNaziv,tblPodaci[DATUM I VRIJEME]&tblPodaci[TKO],0),3),\"\")","v":""}]
[null,"21:00:00",{"$f":"IFERROR(INDEX(tblPodaci[],MATCH(C$5+$B22&PokažiNaziv,tblPodaci[DATUM I VRIJEME]&tblPodaci[TKO],0),3),\"\")","v":""},{"$f":"IFERROR(INDEX(tblPodaci[],MATCH(D$5+$B22&PokažiNaziv,tblPodaci[DATUM I VRIJEME]&tblPodaci[TKO],0),3),\"\")","v":""},{"$f":"IFERROR(INDEX(tblPodaci[],MATCH(E$5+$B22&PokažiNaziv,tblPodaci[DATUM I VRIJEME]&tblPodaci[TKO],0),3),\"\")","v":""},{"$f":"IFERROR(INDEX(tblPodaci[],MATCH(F$5+$B22&PokažiNaziv,tblPodaci[DATUM I VRIJEME]&tblPodaci[TKO],0),3),\"\")","v":""},{"$f":"IFERROR(INDEX(tblPodaci[],MATCH(G$5+$B22&PokažiNaziv,tblPodaci[DATUM I VRIJEME]&tblPodaci[TKO],0),3),\"\")","v":""},{"$f":"IFERROR(INDEX(tblPodaci[],MATCH(H$5+$B22&PokažiNaziv,tblPodaci[DATUM I VRIJEME]&tblPodaci[TKO],0),3),\"\")","v":""},{"$f":"IFERROR(INDEX(tblPodaci[],MATCH(I$5+$B22&PokažiNaziv,tblPodaci[DATUM I VRIJEME]&tblPodaci[TKO],0),3),\"\")","v":""}]
[null,"22:00:00",{"$f":"IFERROR(INDEX(tblPodaci[],MATCH(C$5+$B23&PokažiNaziv,tblPodaci[DATUM I VRIJEME]&tblPodaci[TKO],0),3),\"\")","v":""},{"$f":"IFERROR(INDEX(tblPodaci[],MATCH(D$5+$B23&PokažiNaziv,tblPodaci[DATUM I VRIJEME]&tblPodaci[TKO],0),3),\"\")","v":""},{"$f":"IFERROR(INDEX(tblPodaci[],MATCH(E$5+$B23&PokažiNaziv,tblPodaci[DATUM I VRIJEME]&tblPodaci[TKO],0),3),\"\")","v":""},{"$f":"IFERROR(INDEX(tblPodaci[],MATCH(F$5+$B23&PokažiNaziv,tblPodaci[DATUM I VRIJEME]&tblPodaci[TKO],0),3),\"\")","v":""},{"$f":"IFERROR(INDEX(tblPodaci[],MATCH(G$5+$B23&PokažiNaziv,tblPodaci[DATUM I VRIJEME]&tblPodaci[TKO],0),3),\"\")","v":""},{"$f":"IFERROR(INDEX(tblPodaci[],MATCH(H$5+$B23&PokažiNaziv,tblPodaci[DATUM I VRIJEME]&tblPodaci[TKO],0),3),\"\")","v":""},{"$f":"IFERROR(INDEX(tblPodaci[],MATCH(I$5+$B23&PokažiNaziv,tblPodaci[DATUM I VRIJEME]&tblPodaci[TKO],0),3),\"\")","v":""}]

{"sheet":"Unos podataka","index":1,"n_rows":14,"n_cols":4,"rows_kept":14}
[null,"UNOS PODATAKA"]
[]
[null,"DATUM I VRIJEME","TKO","ZADATAK"]
[null,"2012-07-02T08:00:00","Ana","Zakazani pregled kod liječnika"]
[null,"2012-07-02T18:00:00","Luka","Uzimanje lijeka"]
[null,"2012-07-02T18:30:00","Luka","Večera s Zrinkom"]
[null,"2012-07-02T20:00:00","Luka","Odlazak u kino s obitelji"]
[null,"2012-07-03T16:00:00","Luka","Odlazak u vikendicu"]
[null,"2012-07-04T10:00:00","Luka","Parada u gradu"]
[null,"2012-07-05T20:00:00","Luka","Vatromet"]
[null,"2012-07-06T11:00:00","Luka","Obiteljski roštilj"]
[null,"2012-07-07","Luka","Piknik zajednice"]
[null,"2012-07-08T17:00:00","Luka","Povratak kući"]
[null,"2012-07-02T10:00:00","Ana","Satovi klavira"]

{"sheet":"Pretraživanje imena","index":2,"n_rows":132,"n_cols":2,"rows_kept":132,"hidden":true,"merged":[[0,0,0,1]]}
["Ovaj list popunjava padajući popis imena na listu Raspored u ćeliji H3. Bilo kakve promjene izvršene na ovom listu mogle bi rezultirati podrškom."]
["JEDINSTVENI NAZIV","BROJ RETKA"]
[{"$f":"IFERROR(INDEX(PoljeTko,MATCH(0,COUNTIF($A$2:A2,PoljeTko),0)),\"\")","v":"Ana"},{"$f":"IF(A3=\"\",\"\",ROW())","v":3}]
[{"$f":"IFERROR(INDEX(PoljeTko,MATCH(0,COUNTIF($A$2:A3,PoljeTko),0)),\"\")","v":"Luka"},{"$f":"IF(A4=\"\",\"\",ROW())","v":4}]
[{"$f":"IFERROR(INDEX(PoljeTko,MATCH(0,COUNTIF($A$2:A4,PoljeTko),0)),\"\")","v":""},""]
[{"$f":"IFERROR(INDEX(PoljeTko,MATCH(0,COUNTIF($A$2:A5,PoljeTko),0)),\"\")","v":""},""]
[{"$f":"IFERROR(INDEX(PoljeTko,MATCH(0,COUNTIF($A$2:A6,PoljeTko),0)),\"\")","v":""},""]
[{"$f":"IFERROR(INDEX(PoljeTko,MATCH(0,COUNTIF($A$2:A7,PoljeTko),0)),\"\")","v":""},""]
[{"$f":"IFERROR(INDEX(PoljeTko,MATCH(0,COUNTIF($A$2:A8,PoljeTko),0)),\"\")","v":""},""]
[{"$f":"IFERROR(INDEX(PoljeTko,MATCH(0,COUNTIF($A$2:A9,PoljeTko),0)),\"\")","v":""},""]
[{"$f":"IFERROR(INDEX(PoljeTko,MATCH(0,COUNTIF($A$2:A10,PoljeTko),0)),\"\")","v":""},""]
[{"$f":"IFERROR(INDEX(PoljeTko,MATCH(0,COUNTIF($A$2:A11,PoljeTko),0)),\"\")","v":""},""]
[{"$f":"IFERROR(INDEX(PoljeTko,MATCH(0,COUNTIF($A$2:A12,PoljeTko),0)),\"\")","v":""},""]
[{"$f":"IFERROR(INDEX(PoljeTko,MATCH(0,COUNTIF($A$2:A13,PoljeTko),0)),\"\")","v":""},""]
[{"$f":"IFERROR(INDEX(PoljeTko,MATCH(0,COUNTIF($A$2:A14,PoljeTko),0)),\"\")","v":""},""]
[{"$f":"IFERROR(INDEX(PoljeTko,MATCH(0,COUNTIF($A$2:A15,PoljeTko),0)),\"\")","v":""},""]
[{"$f":"IFERROR(INDEX(PoljeTko,MATCH(0,COUNTIF($A$2:A16,PoljeTko),0)),\"\")","v":""},""]
[{"$f":"IFERROR(INDEX(PoljeTko,MATCH(0,COUNTIF($A$2:A17,PoljeTko),0)),\"\")","v":""},""]
[{"$f":"IFERROR(INDEX(PoljeTko,MATCH(0,COUNTIF($A$2:A18,PoljeTko),0)),\"\")","v":""},""]
[{"$f":"IFERROR(INDEX(PoljeTko,MATCH(0,COUNTIF($A$2:A19,PoljeTko),0)),\"\")","v":""},""]
[{"$f":"IFERROR(INDEX(PoljeTko,MATCH(0,COUNTIF($A$2:A20,PoljeTko),0)),\"\")","v":""},""]
[{"$f":"IFERROR(INDEX(PoljeTko,MATCH(0,COUNTIF($A$2:A21,PoljeTko),0)),\"\")","v":""},""]
[{"$f":"IFERROR(INDEX(PoljeTko,MATCH(0,COUNTIF($A$2:A22,PoljeTko),0)),\"\")","v":""},""]
[{"$f":"IFERROR(INDEX(PoljeTko,MATCH(0,COUNTIF($A$2:A23,PoljeTko),0)),\"\")","v":""},""]
[{"$f":"IFERROR(INDEX(PoljeTko,MATCH(0,COUNTIF($A$2:A24,PoljeTko),0)),\"\")","v":""},""]
[{"$f":"IFERROR(INDEX(PoljeTko,MATCH(0,COUNTIF($A$2:A25,PoljeTko),0)),\"\")","v":""},""]
[{"$f":"IFERROR(INDEX(PoljeTko,MATCH(0,COUNTIF($A$2:A26,PoljeTko),0)),\"\")","v":""},""]
[{"$f":"IFERROR(INDEX(PoljeTko,MATCH(0,COUNTIF($A$2:A27,PoljeTko),0)),\"\")","v":""},""]
[{"$f":"IFERROR(INDEX(PoljeTko,MATCH(0,COUNTIF($A$2:A28,PoljeTko),0)),\"\")","v":""},""]
[{"$f":"IFERROR(INDEX(PoljeTko,MATCH(0,COUNTIF($A$2:A29,PoljeTko),0)),\"\")","v":""},""]
[{"$f":"IFERROR(INDEX(PoljeTko,MATCH(0,COUNTIF($A$2:A30,PoljeTko),0)),\"\")","v":""},""]
[{"$f":"IFERROR(INDEX(PoljeTko,MATCH(0,COUNTIF($A$2:A31,PoljeTko),0)),\"\")","v":""},""]
[{"$f":"IFERROR(INDEX(PoljeTko,MATCH(0,COUNTIF($A$2:A32,PoljeTko),0)),\"\")","v":""},""]
[{"$f":"IFERROR(INDEX(PoljeTko,MATCH(0,COUNTIF($A$2:A33,PoljeTko),0)),\"\")","v":""},""]
[{"$f":"IFERROR(INDEX(PoljeTko,MATCH(0,COUNTIF($A$2:A34,PoljeTko),0)),\"\")","v":""},""]
[{"$f":"IFERROR(INDEX(PoljeTko,MATCH(0,COUNTIF($A$2:A35,PoljeTko),0)),\"\")","v":""},""]
[{"$f":"IFERROR(INDEX(PoljeTko,MATCH(0,COUNTIF($A$2:A36,PoljeTko),0)),\"\")","v":""},""]
[{"$f":"IFERROR(INDEX(PoljeTko,MATCH(0,COUNTIF($A$2:A37,PoljeTko),0)),\"\")","v":""},""]
[{"$f":"IFERROR(INDEX(PoljeTko,MATCH(0,COUNTIF($A$2:A38,PoljeTko),0)),\"\")","v":""},""]
[{"$f":"IFERROR(INDEX(PoljeTko,MATCH(0,COUNTIF($A$2:A39,PoljeTko),0)),\"\")","v":""},""]
[{"$f":"IFERROR(INDEX(PoljeTko,MATCH(0,COUNTIF($A$2:A40,PoljeTko),0)),\"\")","v":""},""]
[{"$f":"IFERROR(INDEX(PoljeTko,MATCH(0,COUNTIF($A$2:A41,PoljeTko),0)),\"\")","v":""},""]
[{"$f":"IFERROR(INDEX(PoljeTko,MATCH(0,COUNTIF($A$2:A42,PoljeTko),0)),\"\")","v":""},""]
[{"$f":"IFERROR(INDEX(PoljeTko,MATCH(0,COUNTIF($A$2:A43,PoljeTko),0)),\"\")","v":""},""]
[{"$f":"IFERROR(INDEX(PoljeTko,MATCH(0,COUNTIF($A$2:A44,PoljeTko),0)),\"\")","v":""},""]
[{"$f":"IFERROR(INDEX(PoljeTko,MATCH(0,COUNTIF($A$2:A45,PoljeTko),0)),\"\")","v":""},""]
[{"$f":"IFERROR(INDEX(PoljeTko,MATCH(0,COUNTIF($A$2:A46,PoljeTko),0)),\"\")","v":""},""]
[{"$f":"IFERROR(INDEX(PoljeTko,MATCH(0,COUNTIF($A$2:A47,PoljeTko),0)),\"\")","v":""},""]
[{"$f":"IFERROR(INDEX(PoljeTko,MATCH(0,COUNTIF($A$2:A48,PoljeTko),0)),\"\")","v":""},""]
[{"$f":"IFERROR(INDEX(PoljeTko,MATCH(0,COUNTIF($A$2:A49,PoljeTko),0)),\"\")","v":""},""]
[{"$f":"IFERROR(INDEX(PoljeTko,MATCH(0,COUNTIF($A$2:A50,PoljeTko),0)),\"\")","v":""},""]
[{"$f":"IFERROR(INDEX(PoljeTko,MATCH(0,COUNTIF($A$2:A51,PoljeTko),0)),\"\")","v":""},""]
[{"$f":"IFERROR(INDEX(PoljeTko,MATCH(0,COUNTIF($A$2:A52,PoljeTko),0)),\"\")","v":""},""]
[{"$f":"IFERROR(INDEX(PoljeTko,MATCH(0,COUNTIF($A$2:A53,PoljeTko),0)),\"\")","v":""},""]
[{"$f":"IFERROR(INDEX(PoljeTko,MATCH(0,COUNTIF($A$2:A54,PoljeTko),0)),\"\")","v":""},""]
[{"$f":"IFERROR(INDEX(PoljeTko,MATCH(0,COUNTIF($A$2:A55,PoljeTko),0)),\"\")","v":""},""]
[{"$f":"IFERROR(INDEX(PoljeTko,MATCH(0,COUNTIF($A$2:A56,PoljeTko),0)),\"\")","v":""},""]
[{"$f":"IFERROR(INDEX(PoljeTko,MATCH(0,COUNTIF($A$2:A57,PoljeTko),0)),\"\")","v":""},""]
[{"$f":"IFERROR(INDEX(PoljeTko,MATCH(0,COUNTIF($A$2:A58,PoljeTko),0)),\"\")","v":""},""]
[{"$f":"IFERROR(INDEX(PoljeTko,MATCH(0,COUNTIF($A$2:A59,PoljeTko),0)),\"\")","v":""},""]
[{"$f":"IFERROR(INDEX(PoljeTko,MATCH(0,COUNTIF($A$2:A60,PoljeTko),0)),\"\")","v":""},""]
[{"$f":"IFERROR(INDEX(PoljeTko,MATCH(0,COUNTIF($A$2:A61,PoljeTko),0)),\"\")","v":""},""]
[{"$f":"IFERROR(INDEX(PoljeTko,MATCH(0,COUNTIF($A$2:A62,PoljeTko),0)),\"\")","v":""},""]
[{"$f":"IFERROR(INDEX(PoljeTko,MATCH(0,COUNTIF($A$2:A63,PoljeTko),0)),\"\")","v":""},""]
[{"$f":"IFERROR(INDEX(PoljeTko,MATCH(0,COUNTIF($A$2:A64,PoljeTko),0)),\"\")","v":""},""]
[{"$f":"IFERROR(INDEX(PoljeTko,MATCH(0,COUNTIF($A$2:A65,PoljeTko),0)),\"\")","v":""},""]
[{"$f":"IFERROR(INDEX(PoljeTko,MATCH(0,COUNTIF($A$2:A66,PoljeTko),0)),\"\")","v":""},""]
[{"$f":"IFERROR(INDEX(PoljeTko,MATCH(0,COUNTIF($A$2:A67,PoljeTko),0)),\"\")","v":""},{"$f":"IF(A68=\"\",\"\",ROW())","v":""}]
[{"$f":"IFERROR(INDEX(PoljeTko,MATCH(0,COUNTIF($A$2:A68,PoljeTko),0)),\"\")","v":""},""]
[{"$f":"IFERROR(INDEX(PoljeTko,MATCH(0,COUNTIF($A$2:A69,PoljeTko),0)),\"\")","v":""},""]
[{"$f":"IFERROR(INDEX(PoljeTko,MATCH(0,COUNTIF($A$2:A70,PoljeTko),0)),\"\")","v":""},""]
[{"$f":"IFERROR(INDEX(PoljeTko,MATCH(0,COUNTIF($A$2:A71,PoljeTko),0)),\"\")","v":""},""]
[{"$f":"IFERROR(INDEX(PoljeTko,MATCH(0,COUNTIF($A$2:A72,PoljeTko),0)),\"\")","v":""},""]
[{"$f":"IFERROR(INDEX(PoljeTko,MATCH(0,COUNTIF($A$2:A73,PoljeTko),0)),\"\")","v":""},""]
[{"$f":"IFERROR(INDEX(PoljeTko,MATCH(0,COUNTIF($A$2:A74,PoljeTko),0)),\"\")","v":""},""]
[{"$f":"IFERROR(INDEX(PoljeTko,MATCH(0,COUNTIF($A$2:A75,PoljeTko),0)),\"\")","v":""},""]
[{"$f":"IFERROR(INDEX(PoljeTko,MATCH(0,COUNTIF($A$2:A76,PoljeTko),0)),\"\")","v":""},""]
[{"$f":"IFERROR(INDEX(PoljeTko,MATCH(0,COUNTIF($A$2:A77,PoljeTko),0)),\"\")","v":""},""]
[{"$f":"IFERROR(INDEX(PoljeTko,MATCH(0,COUNTIF($A$2:A78,PoljeTko),0)),\"\")","v":""},""]
[{"$f":"IFERROR(INDEX(PoljeTko,MATCH(0,COUNTIF($A$2:A79,PoljeTko),0)),\"\")","v":""},""]
[{"$f":"IFERROR(INDEX(PoljeTko,MATCH(0,COUNTIF($A$2:A80,PoljeTko),0)),\"\")","v":""},""]
[{"$f":"IFERROR(INDEX(PoljeTko,MATCH(0,COUNTIF($A$2:A81,PoljeTko),0)),\"\")","v":""},""]
[{"$f":"IFERROR(INDEX(PoljeTko,MATCH(0,COUNTIF($A$2:A82,PoljeTko),0)),\"\")","v":""},""]
[{"$f":"IFERROR(INDEX(PoljeTko,MATCH(0,COUNTIF($A$2:A83,PoljeTko),0)),\"\")","v":""},""]
[{"$f":"IFERROR(INDEX(PoljeTko,MATCH(0,COUNTIF($A$2:A84,PoljeTko),0)),\"\")","v":""},""]
[{"$f":"IFERROR(INDEX(PoljeTko,MATCH(0,COUNTIF($A$2:A85,PoljeTko),0)),\"\")","v":""},""]
[{"$f":"IFERROR(INDEX(PoljeTko,MATCH(0,COUNTIF($A$2:A86,PoljeTko),0)),\"\")","v":""},""]
[{"$f":"IFERROR(INDEX(PoljeTko,MATCH(0,COUNTIF($A$2:A87,PoljeTko),0)),\"\")","v":""},""]
[{"$f":"IFERROR(INDEX(PoljeTko,MATCH(0,COUNTIF($A$2:A88,PoljeTko),0)),\"\")","v":""},""]
[{"$f":"IFERROR(INDEX(PoljeTko,MATCH(0,COUNTIF($A$2:A89,PoljeTko),0)),\"\")","v":""},""]
[{"$f":"IFERROR(INDEX(PoljeTko,MATCH(0,COUNTIF($A$2:A90,PoljeTko),0)),\"\")","v":""},""]
[{"$f":"IFERROR(INDEX(PoljeTko,MATCH(0,COUNTIF($A$2:A91,PoljeTko),0)),\"\")","v":""},""]
[{"$f":"IFERROR(INDEX(PoljeTko,MATCH(0,COUNTIF($A$2:A92,PoljeTko),0)),\"\")","v":""},""]
[{"$f":"IFERROR(INDEX(PoljeTko,MATCH(0,COUNTIF($A$2:A93,PoljeTko),0)),\"\")","v":""},""]
[{"$f":"IFERROR(INDEX(PoljeTko,MATCH(0,COUNTIF($A$2:A94,PoljeTko),0)),\"\")","v":""},""]
[{"$f":"IFERROR(INDEX(PoljeTko,MATCH(0,COUNTIF($A$2:A95,PoljeTko),0)),\"\")","v":""},""]
[{"$f":"IFERROR(INDEX(PoljeTko,MATCH(0,COUNTIF($A$2:A96,PoljeTko),0)),\"\")","v":""},""]
[{"$f":"IFERROR(INDEX(PoljeTko,MATCH(0,COUNTIF($A$2:A97,PoljeTko),0)),\"\")","v":""},""]
[{"$f":"IFERROR(INDEX(PoljeTko,MATCH(0,COUNTIF($A$2:A98,PoljeTko),0)),\"\")","v":""},""]
[{"$f":"IFERROR(INDEX(PoljeTko,MATCH(0,COUNTIF($A$2:A99,PoljeTko),0)),\"\")","v":""},""]
[{"$f":"IFERROR(INDEX(PoljeTko,MATCH(0,COUNTIF($A$2:A100,PoljeTko),0)),\"\")","v":""},""]
[{"$f":"IFERROR(INDEX(PoljeTko,MATCH(0,COUNTIF($A$2:A101,PoljeTko),0)),\"\")","v":""},""]
[{"$f":"IFERROR(INDEX(PoljeTko,MATCH(0,COUNTIF($A$2:A102,PoljeTko),0)),\"\")","v":""},""]
[{"$f":"IFERROR(INDEX(PoljeTko,MATCH(0,COUNTIF($A$2:A103,PoljeTko),0)),\"\")","v":""},""]
[{"$f":"IFERROR(INDEX(PoljeTko,MATCH(0,COUNTIF($A$2:A104,PoljeTko),0)),\"\")","v":""},""]
[{"$f":"IFERROR(INDEX(PoljeTko,MATCH(0,COUNTIF($A$2:A105,PoljeTko),0)),\"\")","v":""},""]
[{"$f":"IFERROR(INDEX(PoljeTko,MATCH(0,COUNTIF($A$2:A106,PoljeTko),0)),\"\")","v":""},""]
[{"$f":"IFERROR(INDEX(PoljeTko,MATCH(0,COUNTIF($A$2:A107,PoljeTko),0)),\"\")","v":""},""]
[{"$f":"IFERROR(INDEX(PoljeTko,MATCH(0,COUNTIF($A$2:A108,PoljeTko),0)),\"\")","v":""},""]
[{"$f":"IFERROR(INDEX(PoljeTko,MATCH(0,COUNTIF($A$2:A109,PoljeTko),0)),\"\")","v":""},""]
[{"$f":"IFERROR(INDEX(PoljeTko,MATCH(0,COUNTIF($A$2:A110,PoljeTko),0)),\"\")","v":""},""]
[{"$f":"IFERROR(INDEX(PoljeTko,MATCH(0,COUNTIF($A$2:A111,PoljeTko),0)),\"\")","v":""},""]
[{"$f":"IFERROR(INDEX(PoljeTko,MATCH(0,COUNTIF($A$2:A112,PoljeTko),0)),\"\")","v":""},""]
[{"$f":"IFERROR(INDEX(PoljeTko,MATCH(0,COUNTIF($A$2:A113,PoljeTko),0)),\"\")","v":""},""]
[{"$f":"IFERROR(INDEX(PoljeTko,MATCH(0,COUNTIF($A$2:A114,PoljeTko),0)),\"\")","v":""},""]
[{"$f":"IFERROR(INDEX(PoljeTko,MATCH(0,COUNTIF($A$2:A115,PoljeTko),0)),\"\")","v":""},""]
[{"$f":"IFERROR(INDEX(PoljeTko,MATCH(0,COUNTIF($A$2:A116,PoljeTko),0)),\"\")","v":""},""]
[{"$f":"IFERROR(INDEX(PoljeTko,MATCH(0,COUNTIF($A$2:A117,PoljeTko),0)),\"\")","v":""},""]
[{"$f":"IFERROR(INDEX(PoljeTko,MATCH(0,COUNTIF($A$2:A118,PoljeTko),0)),\"\")","v":""},""]
[{"$f":"IFERROR(INDEX(PoljeTko,MATCH(0,COUNTIF($A$2:A119,PoljeTko),0)),\"\")","v":""},""]
[{"$f":"IFERROR(INDEX(PoljeTko,MATCH(0,COUNTIF($A$2:A120,PoljeTko),0)),\"\")","v":""},""]
[{"$f":"IFERROR(INDEX(PoljeTko,MATCH(0,COUNTIF($A$2:A121,PoljeTko),0)),\"\")","v":""},""]
[{"$f":"IFERROR(INDEX(PoljeTko,MATCH(0,COUNTIF($A$2:A122,PoljeTko),0)),\"\")","v":""},""]
[{"$f":"IFERROR(INDEX(PoljeTko,MATCH(0,COUNTIF($A$2:A123,PoljeTko),0)),\"\")","v":""},""]
[{"$f":"IFERROR(INDEX(PoljeTko,MATCH(0,COUNTIF($A$2:A124,PoljeTko),0)),\"\")","v":""},""]
[{"$f":"IFERROR(INDEX(PoljeTko,MATCH(0,COUNTIF($A$2:A125,PoljeTko),0)),\"\")","v":""},""]
[{"$f":"IFERROR(INDEX(PoljeTko,MATCH(0,COUNTIF($A$2:A126,PoljeTko),0)),\"\")","v":""},""]
[{"$f":"IFERROR(INDEX(PoljeTko,MATCH(0,COUNTIF($A$2:A127,PoljeTko),0)),\"\")","v":""},""]
[{"$f":"IFERROR(INDEX(PoljeTko,MATCH(0,COUNTIF($A$2:A128,PoljeTko),0)),\"\")","v":""},""]
[{"$f":"IFERROR(INDEX(PoljeTko,MATCH(0,COUNTIF($A$2:A129,PoljeTko),0)),\"\")","v":""},""]
[{"$f":"IFERROR(INDEX(PoljeTko,MATCH(0,COUNTIF($A$2:A130,PoljeTko),0)),\"\")","v":""},""]
[{"$f":"IFERROR(INDEX(PoljeTko,MATCH(0,COUNTIF($A$2:A131,PoljeTko),0)),\"\")","v":""},{"$f":"IF(A132=\"\",\"\",ROW())","v":""}]